bitfinex/quotes_BTCUSD_20240721
["timestamp","ask_amount","ask_price","bid_price","bid_amount"]
[1721529597239,0.243255,67445.0,67444.0,0.18769314]
[1721529600190,0.243255,67445.0,67444.0,0.06457655]
[1721529600366,0.243255,67445.0,67444.0,0.18769326]
[1721529602104,0.198855,67445.0,67444.0,0.18769326]
[1721529603191,0.198855,67445.0,67444.0,0.18769157]
[1721529603413,0.00084,67445.0,67444.0,0.18769157]
[1721529603644,0.00084,67445.0,67444.0,0.37236313]
[1721529604982,0.00084,67445.0,67444.0,0.42428925]
[1721529605408,0.00084,67445.0,67444.0,0.18769157]
[1721529605850,0.00084,67445.0,67444.0,0.18769321]
[1721529608009,0.12504,67445.0,67444.0,0.18769321]
[1721529608427,0.12504,67445.0,67444.0,0.17885121]
[1721529608637,0.12504,67445.0,67444.0,0.18769321]
[1721529609506,0.00084,67445.0,67444.0,0.18769321]
[1721529611178,0.00084,67445.0,67444.0,0.42429193]
[1721529611438,0.00084,67445.0,67444.0,0.18769321]
[1721529612286,0.00084,67445.0,67444.0,0.18769229]
[1721529615486,0.00084,67445.0,67444.0,0.06457655]
[1721529615706,0.00084,67445.0,67444.0,0.18769229]
[1721529619485,0.00084,67445.0,67444.0,0.30630829]
[1721529620799,0.00084,67445.0,67444.0,0.36680829]
[1721529621223,0.00084,67445.0,67444.0,0.55147393]
[1721529621681,0.00084,67445.0,67444.0,0.55146295]
[1721529621891,0.00084,67445.0,67444.0,0.60335446]
[1721529624010,0.00084,67445.0,67444.0,0.36680071]
[1721529624264,0.00084,67445.0,67444.0,0.60336138]
[1721529624911,0.00084,67445.0,67444.0,0.42425058]
[1721529625554,0.00084,67445.0,67444.0,0.18768896]
[1721529625761,0.00084,67445.0,67444.0,0.42425187]
[1721529625982,0.00084,67445.0,67444.0,0.41540987]
[1721529626188,0.00084,67445.0,67444.0,0.42425365]
[1721529626400,0.00084,67445.0,67444.0,0.41541165]
[1721529626620,0.00084,67445.0,67444.0,0.42425365]
[1721529628120,0.00084,67445.0,67444.0,0.06457655]
[1721529628335,0.00084,67445.0,67444.0,0.42425719]
[1721529628757,0.00084,67445.0,67444.0,0.42425566]
[1721529629860,0.00084,67445.0,67444.0,0.41541366]
[1721529630566,0.00084,67445.0,67444.0,0.42425566]
[1721529631440,0.00084,67445.0,67444.0,0.42425521]
[1721529632534,0.00084,67445.0,67444.0,0.56625521]
[1721529634446,0.00084,67445.0,67444.0,0.56625114]
[1721529634894,0.00084,67445.0,67444.0,1.26182112]
[1721529636403,0.00084,67445.0,67444.0,1.26181467]
[1721529637725,0.00084,67445.0,67444.0,1.13870572]
[1721529637937,0.00084,67445.0,67444.0,1.261816]
[1721529639433,0.00084,67445.0,67444.0,1.024583]
[1721529640734,0.00084,67445.0,67444.0,0.71680729]
[1721529640976,0.00084,67445.0,67444.0,0.78735005]
[1721529641624,0.00084,67445.0,67444.0,0.83991759]
[1721529642056,0.00084,67445.0,67444.0,1.07648399]
[1721529643938,0.00084,67445.0,67444.0,0.71680729]
[1721529644151,0.00084,67445.0,67444.0,1.07648347]
[1721529644357,0.00084,67445.0,67444.0,1.02458714]
[1721529647460,0.00084,67445.0,67444.0,1.02458176]
[1721529651036,0.00084,67445.0,67444.0,1.26181476]
[1721529653688,0.00084,67445.0,67444.0,1.26181209]
[1721529660009,0.00084,67445.0,67444.0,1.26180904]
[1721529662304,0.00084,67445.0,67444.0,1.26181084]
[1721529665513,0.00084,67445.0,67444.0,1.13870262]
[1721529665716,0.00084,67445.0,67444.0,1.26181112]
[1721529668708,0.00084,67445.0,67444.0,1.26181006]
[1721529671879,0.00084,67445.0,67444.0,0.95404029]
[1721529672083,0.00084,67445.0,67444.0,1.26180525]
[1721529675287,0.00084,67445.0,67444.0,1.26180826]
[1721529678471,0.00084,67445.0,67444.0,1.26180875]
[1721529679467,0.00084,67445.0,67444.0,1.49904175]
[1721529684684,0.00084,67445.0,67444.0,1.49904512]
[1721529685119,0.00084,67445.0,67444.0,1.49020312]
[1721529685251,0.00084,67445.0,67444.0,1.49904512]
[1721529685885,0.00084,67445.0,67444.0,1.49020312]
[1721529686920,0.00084,67445.0,67444.0,1.49904512]
[1721529691349,0.00084,67445.0,67444.0,1.49904654]
[1721529691570,0.00084,67445.0,67444.0,0.52673154]
[1721529692509,0.00084,67445.0,67444.0,0.64534754]
[1721529694247,0.00084,67445.0,67444.0,0.33757429]
[1721529694465,0.00084,67445.0,67444.0,0.64534959]
[1721529694895,0.00084,67445.0,67444.0,0.46068453]
[1721529695102,0.00084,67445.0,67444.0,0.6453499]
[1721529695516,0.00084,67445.0,67444.0,0.6353499]
[1721529696356,0.00084,67445.0,67444.0,0.6265079]
[1721529696579,0.00084,67445.0,67444.0,0.32757429]
[1721529696806,0.00084,67445.0,67444.0,0.63534999]
[1721529697430,0.00084,67445.0,67444.0,0.71804999]
[1721529697834,0.00084,67445.0,67444.0,0.77061757]
[1721529698116,0.00084,67445.0,67444.0,1.01628299]
[1721529700036,0.00084,67445.0,67444.0,1.25351599]
[1721529700954,0.00084,67445.0,67444.0,0.94574029]
[1721529701164,0.00084,67445.0,67444.0,1.25350379]
[1721529704119,0.00084,67445.0,67444.0,1.25350531]
[1721529710813,0.00084,67445.0,67444.0,0.93689829]
[1721529711059,0.00084,67445.0,67444.0,1.24466242]
[1721529711311,0.00084,67445.0,67444.0,1.25350442]
[1721529712787,0.00084,67445.0,67444.0,1.24466242]
[1721529712999,0.00084,67445.0,67444.0,1.25350442]
[1721529713448,0.00084,67445.0,67444.0,1.49073742]
[1721529713662,0.00084,67445.0,67444.0,1.49073257]
[1721529716388,0.00084,67445.0,67444.0,1.49165657]
[1721529719107,0.00084,67445.0,67444.0,1.48281457]
[1721529719525,0.00084,67445.0,67444.0,1.49165657]
[1721529719932,0.00084,67445.0,67444.0,1.18389729]
[1721529720137,0.00084,67445.0,67444.0,1.49165934]
[1721529720348,0.00084,67445.0,67444.0,1.18389729]
[1721529720524,0.00084,67445.0,67444.0,1.49165961]
[1721529724543,0.00084,67445.0,67444.0,0.87349361]
[1721529725384,0.00084,67445.0,67444.0,0.56573129]
[1721529725603,0.00084,67445.0,67444.0,0.87350244]
[1721529726987,0.00084,67445.0,67444.0,1.11073544]
[1721529728383,0.00084,67445.0,67444.0,1.19293544]
[1721529728583,0.00084,67445.0,67444.0,1.19293795]
[1721529737892,0.00084,67445.0,67444.0,1.25453795]
[1721529738090,0.00084,67445.0,67444.0,0.94676429]
[1721529738361,0.00084,67445.0,67444.0,1.25453712]
[1721529741446,0.00084,67445.0,67444.0,1.25453457]
[1721529742941,0.00084,67445.0,67444.0,1.58620287]
[1721529743155,0.00084,67445.0,67444.0,1.54176757]
[1721529743394,0.00084,67445.0,67444.0,1.58620287]
[1721529743610,0.00084,67445.0,67444.0,1.63620287]
[1721529743833,0.00084,67445.0,67444.0,1.60620287]
[1721529744042,0.00184,67445.0,67444.0,1.61920287]
[1721529744469,0.00184,67445.0,67444.0,1.25399729]
[1721529744701,0.00284,67445.0,67444.0,1.62016605]
[1721529744904,0.00284,67445.0,67444.0,1.26799729]
[1721529745116,0.00084,67445.0,67444.0,1.5561631]
[1721529745322,0.00184,67445.0,67444.0,1.5701631]
[1721529745969,0.00184,67445.0,67444.0,1.5821631]
[1721529746420,0.00184,67445.0,67444.0,1.5701631]
[1721529746631,0.00084,67445.0,67444.0,1.51174242]
[1721529746837,0.00184,67445.0,67444.0,1.53974242]
[1721529747041,0.00184,67445.0,67444.0,1.52574242]
[1721529747421,0.00284,67445.0,67444.0,1.53974242]
[1721529749041,0.00284,67445.0,67444.0,2.34528851]
[1721529749260,0.00284,67445.0,67444.0,2.10805551]
[1721529749464,0.00284,67445.0,67444.0,2.04143532]
[1721529749815,0.00284,67445.0,67444.0,1.77934085]
[1721529749983,0.00284,67445.0,67444.0,2.04143059]
[1721529750199,0.00284,67445.0,67444.0,2.10802899]
[1721529750589,0.00284,67445.0,67444.0,1.77934082]
[1721529751611,0.00284,67445.0,67444.0,1.94997542]
[1721529752386,0.00284,67445.0,67444.0,1.95867972]
[1721529754219,0.00284,67445.0,67444.0,1.95866707]
[1721529754601,0.00284,67445.0,67444.0,1.65093459]
[1721529754824,0.00284,67445.0,67444.0,1.95866706]
[1721529755136,0.00284,67445.0,67444.0,1.67143406]
[1721529755332,0.00284,67445.0,67444.0,1.64843406]
[1721529755560,0.00284,67445.0,67444.0,1.7618123]
[1721529756688,0.00284,67445.0,67444.0,1.40970159]
[1721529756896,0.00284,67445.0,67444.0,1.7618106]
[1721529757350,0.00284,67445.0,67444.0,1.6387174]
[1721529757535,0.00284,67445.0,67444.0,1.76181061]
[1721529758565,0.00284,67445.0,67444.0,1.99904361]
[1721529758883,0.00284,67445.0,67444.0,1.74043462]
[1721529759086,0.00284,67445.0,67444.0,1.83480595]
[1721529759321,0.00284,67445.0,67444.0,1.74043462]
[1721529760596,0.00284,67445.0,67444.0,1.78479838]
[1721529761388,0.00284,67445.0,67444.0,2.02203138]
[1721529761838,0.00284,67445.0,67444.0,1.83479838]
[1721529762041,0.00284,67445.0,67444.0,1.83479408]
[1721529762722,0.00284,67445.0,67444.0,1.74043016]
[1721529762941,0.00284,67445.0,67444.0,2.07202637]
[1721529763924,0.00284,67445.0,67444.0,2.07202962]
[1721529764084,0.00284,67445.0,67444.0,2.71202962]
[1721529764620,0.00284,67445.0,67444.0,2.64766689]
[1721529764820,0.00284,67445.0,67444.0,2.65766689]
[1721529765235,0.00284,67445.0,67444.0,2.02766689]
[1721529765545,0.00284,67445.0,67444.0,2.62766689]
[1721529766594,0.00284,67445.0,67444.0,2.02766689]
[1721529767008,0.00284,67445.0,67444.0,2.67765739]
[1721529767421,0.00284,67445.0,67444.0,2.36993459]
[1721529767626,0.00284,67445.0,67444.0,2.6776578]
[1721529767756,0.00284,67445.0,67444.0,2.73920193]
[1721529767975,0.00284,67445.0,67444.0,3.33261388]
[1721529768167,1e-06,67445.0,67444.0,3.37792169]
[1721529768399,0.00084,67452.0,67451.0,1.555991]
[1721529768602,0.00084,67452.0,67451.0,3.47023924]
[1721529768947,0.00084,67452.0,67451.0,3.48658034]
[1721529769279,0.00837,67463.0,67462.0,1.318607]
[1721529769476,0.00837,67463.0,67462.0,2.83506742]
[1721529769716,0.00837,67463.0,67462.0,2.19413192]
[1721529769858,0.00837,67463.0,67462.0,2.52269713]
[1721529770102,0.00837,67463.0,67462.0,2.1940244]
[1721529770347,0.00837,67463.0,67462.0,2.19402485]
[1721529770552,0.00837,67463.0,67462.0,2.1718682]
[1721529771406,0.00837,67463.0,67462.0,2.12762504]
[1721529771610,0.00837,67463.0,67462.0,2.14162504]
[1721529772055,0.00837,67463.0,67462.0,2.15562504]
[1721529772265,0.00837,67463.0,67462.0,2.14162504]
[1721529772636,0.00837,67463.0,67462.0,2.09410263]
[1721529772839,0.00837,67463.0,67462.0,2.15562519]
[1721529773045,0.00837,67463.0,67462.0,2.14162519]
[1721529773249,0.00837,67463.0,67462.0,2.1556248]
[1721529773471,0.00837,67463.0,67462.0,2.1416248]
[1721529773692,0.00837,67463.0,67462.0,2.08010263]
[1721529773901,0.00837,67463.0,67462.0,2.09410263]
[1721529774056,0.00837,67463.0,67462.0,2.08010263]
[1721529774464,0.00837,67463.0,67462.0,2.09410263]
[1721529774842,0.00837,67463.0,67462.0,2.08010263]
[1721529775045,0.00837,67463.0,67462.0,2.06610263]
[1721529775249,0.00837,67463.0,67462.0,2.09410263]
[1721529776980,0.00837,67463.0,67462.0,2.10294206]
[1721529777937,0.00837,67463.0,67462.0,2.08894206]
[1721529778960,0.00837,67463.0,67462.0,2.10294206]
[1721529779349,0.00837,67463.0,67462.0,2.11131206]
[1721529779551,0.00837,67463.0,67462.0,2.11131688]
[1721529779965,0.00837,67463.0,67462.0,2.11131686]
[1721529780485,0.00837,67463.0,67462.0,2.09731686]
[1721529780694,0.00837,67463.0,67462.0,2.11131686]
[1721529781890,0.00837,67463.0,67462.0,1.80369998]
[1721529782086,0.00837,67463.0,67462.0,2.11133263]
[1721529784358,0.00837,67463.0,67462.0,2.06133263]
[1721529785117,0.00837,67463.0,67462.0,1.75369998]
[1721529785321,0.00837,67463.0,67462.0,2.06133476]
[1721529785697,0.00837,67463.0,67462.0,1.60866476]
[1721529785899,0.13077,67463.0,67462.0,0.52355554]
[1721529786103,0.13077,67463.0,67462.0,0.33897467]
[1721529786428,0.13077,67463.0,67462.0,0.44918967]
[1721529787007,0.13077,67463.0,67462.0,0.43518967]
[1721529787208,0.13077,67463.0,67462.0,0.42118967]
[1721529787502,0.13077,67463.0,67462.0,0.44918967]
[1721529788120,0.13077,67463.0,67462.0,0.32613576]
[1721529788480,0.13077,67463.0,67462.0,0.44921263]
[1721529789380,0.13077,67463.0,67462.0,0.32178563]
[1721529789641,0.13077,67463.0,67462.0,0.33062763]
[1721529789867,0.13077,67463.0,67462.0,0.44921263]
[1721529791552,0.13077,67463.0,67462.0,0.44921265]
[1721529791935,0.13077,67463.0,67462.0,0.44921272]
[1721529792598,0.13077,67463.0,67462.0,0.68638272]
[1721529794475,0.13077,67463.0,67462.0,0.68637867]
[1721529797899,0.13077,67463.0,67462.0,0.68637919]
[1721529798014,0.08637,67463.0,67462.0,0.68637919]
[1721529798216,0.08637,67463.0,67462.0,0.92277878]
[1721529798555,0.08637,67463.0,67462.0,0.68637919]
[1721529800768,0.08637,67463.0,67462.0,0.56330576]
[1721529800981,0.08637,67463.0,67462.0,0.68637956]
[1721529802053,0.08637,67463.0,67462.0,0.44920956]
[1721529802585,0.08637,67463.0,67462.0,0.16740082]
[1721529802586,0.367937,67463.0,67462.0,0.16740082]
[1721529802726,0.723687,67463.0,67462.0,0.16740082]
[1721529802931,0.48652,67463.0,67462.0,0.16740082]
[1721529803163,0.48652,67463.0,67462.0,0.1510738]
[1721529803684,0.48652,67463.0,67462.0,0.1370738]
[1721529804095,0.242389,67460.0,67459.0,0.008842]
[1721529804307,0.311389,67460.0,67459.0,0.30194813]
[1721529805298,0.1928,67460.0,67459.0,0.30794813]
[1721529806583,0.311388,67460.0,67459.0,0.30794813]
[1721529807184,0.242388,67460.0,67459.0,0.31294813]
[1721529808260,0.242388,67460.0,67459.0,0.30794813]
[1721529808469,0.242388,67460.0,67459.0,0.31494813]
[1721529809539,0.242388,67460.0,67459.0,0.30894813]
[1721529809682,0.242388,67460.0,67459.0,0.31694813]
[1721529809877,0.118586,67462.0,67461.0,0.008842]
[1721529810095,0.118586,67462.0,67461.0,0.14757267]
[1721529810352,0.118586,67462.0,67461.0,0.14757262]
[1721529811503,0.118586,67462.0,67461.0,0.15857262]
[1721529813507,0.118586,67462.0,67461.0,0.03548253]
[1721529813706,0.118586,67462.0,67461.0,0.15857262]
[1721529814132,0.118586,67462.0,67461.0,0.15857357]
[1721529814572,0.118586,67462.0,67461.0,0.15357357]
[1721529814966,0.118586,67462.0,67461.0,0.15557357]
[1721529815317,0.118586,67462.0,67461.0,0.15357357]
[1721529815521,0.118586,67462.0,67461.0,0.14757357]
[1721529815952,0.118586,67462.0,67461.0,0.15157357]
[1721529816584,0.118586,67462.0,67461.0,0.02848253]
[1721529816762,0.118586,67462.0,67461.0,0.15457357]
[1721529816941,0.118586,67462.0,67461.0,0.03148253]
[1721529817151,0.118586,67462.0,67461.0,0.15457357]
[1721529817354,0.08497,67463.0,67462.0,0.008842]
[1721529817355,0.00837,67463.0,67462.0,0.008842]
[1721529817565,0.00837,67463.0,67462.0,0.37913692]
[1721529818662,0.00837,67463.0,67462.0,0.38313692]
[1721529819579,0.00837,67463.0,67462.0,0.38513692]
[1721529819732,0.00837,67463.0,67462.0,0.38313692]
[1721529819936,0.00837,67463.0,67462.0,0.38313208]
[1721529820159,0.00837,67463.0,67462.0,0.310957]
[1721529823006,0.00837,67463.0,67462.0,0.18787109]
[1721529823198,0.00837,67463.0,67462.0,0.31095695]
[1721529826899,0.00837,67463.0,67462.0,0.31095709]
[1721529828685,0.00837,67463.0,67462.0,0.38813188]
[1721529829198,0.00837,67463.0,67462.0,0.26504588]
[1721529829435,0.00837,67463.0,67462.0,0.3881311]
[1721529832252,0.00837,67463.0,67462.0,0.5856161]
[1721529832462,0.00837,67463.0,67462.0,0.46253088]
[1721529832673,0.00837,67463.0,67462.0,0.82278574]
[1721529833521,0.00837,67463.0,67462.0,0.58561574]
[1721529835873,0.00837,67463.0,67462.0,0.58561581]
[1721529838880,0.00837,67463.0,67462.0,0.46253088]
[1721529839051,0.00837,67463.0,67462.0,0.58561602]
[1721529839497,0.00837,67463.0,67462.0,0.585616]
[1721529841456,0.00837,67463.0,67462.0,0.58561513]
[1721529844800,0.00837,67463.0,67462.0,0.46253088]
[1721529844801,0.00837,67463.0,67462.0,1.19295513]
[1721529845076,0.00837,67463.0,67462.0,1.61474404]
[1721529845766,0.00837,67463.0,67462.0,1.61074404]
[1721529845988,0.00837,67463.0,67462.0,1.61474404]
[1721529846213,0.00837,67463.0,67462.0,1.62574404]
[1721529846673,0.00837,67463.0,67462.0,1.61474404]
[1721529846928,0.00837,67463.0,67462.0,1.62874404]
[1721529847204,0.00837,67463.0,67462.0,1.30857404]
[1721529847638,0.00837,67463.0,67462.0,1.19948277]
[1721529847856,0.00837,67463.0,67462.0,1.32255736]
[1721529848072,0.00837,67463.0,67462.0,1.31355736]
[1721529848283,0.00837,67463.0,67462.0,1.32755736]
[1721529848738,0.00837,67463.0,67462.0,1.31355736]
[1721529849147,0.00837,67463.0,67462.0,1.32755736]
[1721529849365,0.00837,67463.0,67462.0,1.31355736]
[1721529849836,0.00837,67463.0,67462.0,1.32755736]
[1721529850046,0.00837,67463.0,67462.0,1.31355736]
[1721529850262,0.00837,67463.0,67462.0,1.32755736]
[1721529850702,0.00837,67463.0,67462.0,1.01987088]
[1721529850910,0.00837,67463.0,67462.0,1.32755111]
[1721529851384,0.00837,67463.0,67462.0,1.32754473]
[1721529853950,0.00837,67463.0,67462.0,1.32753945]
[1721529854374,0.00837,67463.0,67462.0,1.63370945]
[1721529854589,0.00837,67463.0,67462.0,1.66970945]
[1721529854801,0.00837,67463.0,67462.0,1.61970945]
[1721529855258,0.00837,67463.0,67462.0,2.28970945]
[1721529855673,0.00837,67463.0,67462.0,1.63370945]
[1721529856089,0.00837,67463.0,67462.0,1.61970945]
[1721529856302,0.00837,67463.0,67462.0,1.55070945]
[1721529857144,0.00837,67463.0,67462.0,1.53670006]
[1721529857356,0.00837,67463.0,67462.0,1.55070006]
[1721529859347,0.00837,67463.0,67462.0,1.56470006]
[1721529859939,0.00837,67463.0,67462.0,1.01318527]
[1721529860183,0.00837,67463.0,67462.0,0.46835609]
[1721529860347,0.00837,67463.0,67462.0,0.77603672]
[1721529860553,0.00837,67463.0,67462.0,0.99920672]
[1721529860754,0.00837,67463.0,67462.0,1.01320672]
[1721529861113,0.00837,67463.0,67462.0,0.98520672]
[1721529861577,0.00837,67463.0,67462.0,1.01320672]
[1721529861806,0.00837,67463.0,67462.0,0.99920672]
[1721529862339,0.00837,67463.0,67462.0,1.01320672]
[1721529862835,0.00837,67463.0,67462.0,0.98520672]
[1721529863359,0.00837,67463.0,67462.0,0.99820622]
[1721529864612,0.00837,67463.0,67462.0,1.22237622]
[1721529864860,0.00837,67463.0,67462.0,1.25037622]
[1721529865082,0.00837,67463.0,67462.0,1.23637622]
[1721529865828,0.00837,67463.0,67462.0,1.24937622]
[1721529866523,0.00837,67463.0,67462.0,0.94169609]
[1721529866756,0.00837,67463.0,67462.0,1.2493628]
[1721529868443,0.00837,67463.0,67462.0,1.2363628]
[1721529868649,0.00837,67463.0,67462.0,1.2223628]
[1721529868857,0.00837,67463.0,67462.0,1.2353628]
[1721529869072,0.00837,67463.0,67462.0,1.2493628]
[1721529869278,0.00837,67463.0,67462.0,1.2363628]
[1721529869694,0.00837,67463.0,67462.0,1.25036782]
[1721529871158,0.00837,67463.0,67462.0,1.23636782]
[1721529871362,0.00837,67463.0,67462.0,1.22236782]
[1721529871572,0.00837,67463.0,67462.0,1.23636782]
[1721529871802,0.00837,67463.0,67462.0,1.25036782]
[1721529872019,0.00837,67463.0,67462.0,1.22236782]
[1721529872219,0.00837,67463.0,67462.0,1.23636782]
[1721529872326,0.00837,67463.0,67462.0,1.25036782]
[1721529872737,0.00837,67463.0,67462.0,1.25036557]
[1721529873184,0.00837,67463.0,67462.0,0.94269609]
[1721529873398,0.00837,67463.0,67462.0,1.250365]
[1721529875941,0.00837,67463.0,67462.0,1.25037521]
[1721529876148,0.00837,67463.0,67462.0,1.25037362]
[1721529877188,0.00837,67463.0,67462.0,1.25037122]
[1721529879312,0.00837,67463.0,67462.0,1.25037704]
[1721529879941,0.00837,67463.0,67462.0,1.01320704]
[1721529880562,0.00837,67463.0,67462.0,1.25037704]
[1721529880970,0.00837,67463.0,67462.0,1.01320704]
[1721529881382,0.00837,67463.0,67462.0,1.25037704]
[1721529882411,0.00837,67463.0,67462.0,1.25036327]
[1721529882830,0.00837,67463.0,67462.0,1.31936327]
[1721529883464,0.00837,67463.0,67462.0,1.55653327]
[1721529884532,0.00837,67463.0,67462.0,1.58685036]
[1721529884735,0.00837,67463.0,67462.0,1.24886609]
[1721529884939,0.00837,67463.0,67462.0,1.58682417]
[1721529885318,0.00837,67463.0,67462.0,1.60082417]
[1721529885516,0.00837,67463.0,67462.0,1.59198217]
[1721529885724,0.00837,67463.0,67462.0,1.28433702]
[1721529885952,0.00837,67463.0,67462.0,1.57798305]
[1721529886103,0.00837,67463.0,67462.0,1.22602409]
[1721529886308,0.00837,67463.0,67462.0,2.27414158]
[1721529886507,0.00837,67463.0,67462.0,2.23067009]
[1721529886928,0.00837,67463.0,67462.0,2.53564385]
[1721529887150,0.00837,67463.0,67462.0,2.99803537]
[1721529887374,0.00837,67463.0,67462.0,2.93919337]
[1721529887795,0.00837,67463.0,67462.0,2.99803537]
[1721529888237,0.00837,67463.0,67462.0,2.98403537]
[1721529888454,0.00837,67463.0,67462.0,2.99803537]
[1721529888661,0.00837,67463.0,67462.0,2.84697697]
[1721529888866,0.00837,67463.0,67462.0,2.98397211]
[1721529889084,0.00837,67463.0,67462.0,2.99797185]
[1721529890357,0.00837,67463.0,67462.0,3.01197185]
[1721529891926,0.00837,67463.0,67462.0,3.01195616]
[1721529892427,0.00837,67463.0,67462.0,2.96995616]
[1721529892650,0.00837,67463.0,67462.0,2.99795616]
[1721529893077,0.00837,67463.0,67462.0,2.98395616]
[1721529893294,0.00837,67463.0,67462.0,3.16395616]
[1721529893912,0.00837,67463.0,67462.0,3.14995616]
[1721529894323,0.00837,67463.0,67462.0,3.16395616]
[1721529894746,0.00837,67463.0,67462.0,3.17795616]
[1721529894951,0.00837,67463.0,67462.0,3.11911416]
[1721529895155,0.00837,67463.0,67462.0,3.1051131]
[1721529895379,0.00837,67463.0,67462.0,3.22969247]
[1721529895623,0.00837,67463.0,67462.0,3.21569247]
[1721529896090,0.00837,67463.0,67462.0,3.24369247]
[1721529896501,0.00837,67463.0,67462.0,3.46686247]
[1721529896711,0.00837,67463.0,67462.0,2.4631131]
[1721529896919,0.00837,67463.0,67462.0,3.12252437]
[1721529897157,0.00837,67463.0,67462.0,3.35969437]
[1721529898265,0.00837,67463.0,67462.0,3.05208416]
[1721529898478,0.00837,67463.0,67462.0,3.35968269]
[1721529898698,0.00837,67463.0,67462.0,3.05208416]
[1721529898935,0.00837,67463.0,67462.0,3.35966559]
[1721529899814,0.00837,67463.0,67462.0,3.24911878]
[1721529900247,0.00837,67463.0,67462.0,3.23511878]
[1721529900666,0.00837,67463.0,67462.0,3.19027678]
[1721529900876,0.00837,67463.0,67462.0,3.16227678]
[1721529901100,0.00837,67463.0,67462.0,3.17625874]
[1721529901334,0.00837,67463.0,67462.0,3.16225874]
[1721529901553,0.00837,67463.0,67462.0,3.17625594]
[1721529901979,0.00837,67463.0,67462.0,3.16225594]
[1721529902193,0.00837,67463.0,67462.0,3.22109794]
[1721529902421,0.00837,67463.0,67462.0,3.23509794]
[1721529903709,0.00837,67463.0,67462.0,3.23509811]
[1721529903923,0.00837,67463.0,67462.0,3.17625611]
[1721529904349,0.00837,67470.0,67469.0,1.175994]
[1721529904560,0.00837,67470.0,67469.0,3.03434862]
[1721529904794,0.00837,67470.0,67469.0,3.04994857]
[1721529905029,0.00837,67470.0,67469.0,2.72142676]
[1721529905256,0.00837,67470.0,67469.0,2.99110909]
[1721529905456,0.00837,67470.0,67469.0,2.62175309]
[1721529905868,0.00837,67470.0,67469.0,2.63575309]
[1721529906290,0.00837,67470.0,67469.0,2.69459509]
[1721529906506,0.00837,67470.0,67469.0,2.62830366]
[1721529906798,0.00837,67470.0,67469.0,2.62829154]
[1721529907147,0.00837,67470.0,67469.0,2.61429154]
[1721529907317,0.00837,67470.0,67469.0,2.62829154]
[1721529907966,0.00837,67470.0,67469.0,2.64229154]
[1721529908365,0.00837,67470.0,67469.0,2.56944954]
[1721529908647,0.00837,67470.0,67469.0,2.58344954]
[1721529909169,0.00837,67470.0,67469.0,2.62829154]
[1721529909537,0.00837,67470.0,67469.0,2.64229154]
[1721529909945,0.00837,67470.0,67469.0,2.64229007]
[1721529910218,0.00837,67470.0,67469.0,2.60846662]
[1721529910443,0.00837,67470.0,67469.0,2.61362765]
[1721529910642,0.00837,67470.0,67469.0,2.62246965]
[1721529910850,0.00837,67470.0,67469.0,2.6813826]
[1721529911058,0.00837,67470.0,67469.0,2.6953826]
[1721529911259,0.00837,67470.0,67469.0,2.6453826]
[1721529911519,0.00837,67470.0,67469.0,1.94548595]
[1721529911732,0.00837,67470.0,67469.0,1.12534095]
[1721529911939,0.00837,67470.0,67469.0,1.09734095]
[1721529912156,0.023065,67470.0,67469.0,0.837283]
[1721529912369,0.099665,67470.0,67469.0,1.074428]
[1721529912583,0.12937,67470.0,67469.0,0.50039767]
[1721529912800,0.12937,67470.0,67469.0,0.61903183]
[1721529913007,0.12937,67470.0,67469.0,0.60503095]
[1721529913428,0.12937,67470.0,67469.0,0.87017595]
[1721529913638,0.12937,67470.0,67469.0,0.85617595]
[1721529914063,0.12937,67470.0,67469.0,0.87017595]
[1721529914695,0.12937,67470.0,67469.0,0.85617595]
[1721529915125,0.12937,67470.0,67469.0,0.87017595]
[1721529916171,0.12937,67470.0,67469.0,0.87017609]
[1721529919282,0.12937,67470.0,67469.0,0.8701811]
[1721529919701,0.12937,67470.0,67469.0,0.87018182]
[1721529922255,0.297941,67470.0,67469.0,0.50562282]
[1721529922457,0.297941,67470.0,67469.0,0.32988987]
[1721529922717,0.297941,67470.0,67469.0,0.32104787]
[1721529923092,0.297941,67470.0,67469.0,0.30704787]
[1721529923456,0.3838197,67470.0,67469.0,0.29804787]
[1721529923629,0.3838197,67470.0,67469.0,0.29904787]
[1721529923834,0.6209617,67470.0,67469.0,0.29904787]
[1721529924038,0.6209617,67470.0,67469.0,0.29804787]
[1721529924250,0.3838197,67470.0,67469.0,0.29804787]
[1721529924446,0.3838197,67470.0,67469.0,0.30304787]
[1721529924853,0.6209617,67470.0,67469.0,0.29804787]
[1721529925079,0.6209617,67470.0,67469.0,0.30204787]
[1721529925510,0.6209617,67470.0,67469.0,0.14766613]
[1721529925710,0.6209617,67470.0,67469.0,0.14767831]
[1721529925913,0.6209617,67470.0,67469.0,0.13207968]
[1721529928561,0.6209617,67470.0,67469.0,0.009]
[1721529928769,0.8581037,67470.0,67469.0,0.009]
[1721529930051,0.8581037,67470.0,67469.0,0.005]
[1721529930273,0.8581037,67470.0,67469.0,0.009]
[1721529930696,0.8581037,67470.0,67469.0,0.004]
[1721529931499,0.8581037,67470.0,67469.0,0.009]
[1721529931722,0.8581037,67470.0,67469.0,0.005]
[1721529931923,0.8581037,67470.0,67469.0,0.006]
[1721529932673,0.118583,67463.0,67462.0,0.07717479]
[1721529932895,0.241083,67463.0,67462.0,0.36960805]
[1721529934169,0.241083,67463.0,67462.0,0.37660805]
[1721529934809,0.241083,67463.0,67462.0,0.38545005]
[1721529935026,0.241083,67463.0,67462.0,0.26236594]
[1721529935249,0.241083,67463.0,67462.0,0.39145005]
[1721529935455,0.241083,67463.0,67462.0,0.38260805]
[1721529935867,0.241083,67463.0,67462.0,0.39145005]
[1721529936071,0.241083,67463.0,67462.0,0.38260805]
[1721529936279,0.31569897,67463.0,67462.0,0.38260805]
[1721529936491,0.241083,67463.0,67462.0,0.39145005]
[1721529938444,0.241083,67463.0,67462.0,0.39144996]
[1721529938852,0.241083,67463.0,67462.0,0.26836594]
[1721529939079,0.241083,67463.0,67462.0,0.39144882]
[1721529939721,0.196683,67463.0,67462.0,0.39144882]
[1721529941215,0.23555178,67463.0,67462.0,0.39144882]
[1721529941430,0.23555178,67463.0,67462.0,0.39145005]
[1721529941915,0.23555178,67463.0,67462.0,0.39237405]
[1721529942523,0.23555178,67463.0,67462.0,0.26928994]